[Event "*** SCC Grand Prix: Titled Tuesday Blitz"]
[Site "Chess.com"]
[Date "2020.09.29"]
[Round "8"]
[White "Savagelittlemole"]
[Black "francyIM"]
[Result "1-0"]
[WhiteElo "2635"]
[BlackElo "2748"]
[TimeControl "180+1"]
[EndTime "11:34:22 PDT"]
[Termination "Savagelittlemole won by resignation"]

1. e4 {[%clk 0:03:00.9]} 1... e5 {[%clk 0:02:57.7]} 2. Nf3 {[%clk 0:03:00.1]}
2... Nc6 {[%clk 0:02:57.2]} 3. Bb5 {[%clk 0:02:59.2]} 3... a6 {[%clk 0:02:54.6]}
4. Ba4 {[%clk 0:02:59.8]} 4... Nf6 {[%clk 0:02:53.1]} 5. O-O {[%clk 0:02:59.7]}
5... b5 {[%clk 0:02:50.5]} 6. Bb3 {[%clk 0:02:59.4]} 6... Bc5 {[%clk 0:02:45.9]}
7. Re1 {[%clk 0:02:49.8]} 7... d6 {[%clk 0:02:45]} 8. h3 {[%clk 0:02:50]} 8...
O-O {[%clk 0:02:44.3]} 9. c3 {[%clk 0:02:48.7]} 9... Bb6 {[%clk 0:02:42]} 10. d4
{[%clk 0:02:45.8]} 10... h6 {[%clk 0:02:41.6]} 11. Be3 {[%clk 0:02:40.7]} 11...
Bb7 {[%clk 0:02:26.2]} 12. Nbd2 {[%clk 0:02:37.2]} 12... Re8 {[%clk 0:02:24.3]}
13. d5 {[%clk 0:02:34.8]} 13... Ne7 {[%clk 0:02:24.1]} 14. Bxb6 {[%clk
0:02:32.6]} 14... cxb6 {[%clk 0:02:25]} 15. Nf1 {[%clk 0:02:27.9]} 15... Ng6
{[%clk 0:02:24]} 16. Ng3 {[%clk 0:02:27.7]} 16... Rf8 {[%clk 0:02:23.4]} 17. a4
{[%clk 0:02:20.3]} 17... bxa4 {[%clk 0:02:21.8]} 18. Bxa4 {[%clk 0:02:17.6]}
18... b5 {[%clk 0:02:22.3]} 19. Bc2 {[%clk 0:02:15.7]} 19... Bc8 {[%clk
0:02:22.8]} 20. Bd3 {[%clk 0:02:12.6]} 20... Bd7 {[%clk 0:02:17.9]} 21. c4
{[%clk 0:02:09.4]} 21... Nf4 {[%clk 0:02:14.4]} 22. c5 {[%clk 0:02:01.7]} 22...
dxc5 {[%clk 0:01:46.5]} 23. Nxe5 {[%clk 0:01:59.1]} 23... Qc7 {[%clk 0:01:41.5]}
24. Nxd7 {[%clk 0:01:54.9]} 24... Nxd7 {[%clk 0:01:42.4]} 25. e5 {[%clk
0:01:43.5]} 25... Nxd3 {[%clk 0:01:39.4]} 26. Qxd3 {[%clk 0:01:40.5]} 26... Nxe5
{[%clk 0:01:38.9]} 27. Qe4 {[%clk 0:01:36.3]} 27... Nc4 {[%clk 0:01:18.7]} 28.
Nf5 {[%clk 0:01:36.1]} 28... Qd8 {[%clk 0:01:15.4]} 29. b3 {[%clk 0:01:25.5]}
29... Nd6 {[%clk 0:01:11.4]} 30. Ne7+ {[%clk 0:01:25.7]} 30... Kh8 {[%clk
0:01:10.7]} 31. Qf3 {[%clk 0:01:16.8]} 31... Qd7 {[%clk 0:01:04]} 32. Nc6 {[%clk
0:01:13.9]} 32... c4 {[%clk 0:00:53.3]} 33. bxc4 {[%clk 0:00:58]} 33... bxc4
{[%clk 0:00:48.4]} 34. Re7 {[%clk 0:00:55.7]} 34... Qf5 {[%clk 0:00:46.7]} 35.
Qxf5 {[%clk 0:00:48.5]} 35... Nxf5 {[%clk 0:00:44.9]} 36. Rc7 {[%clk 0:00:49.1]}
36... Nd6 {[%clk 0:00:43.1]} 37. Ne5 {[%clk 0:00:46.2]} 37... Kg8 {[%clk
0:00:37.5]} 38. Nxc4 {[%clk 0:00:44.7]} 38... Nb5 {[%clk 0:00:29.3]} 39. Rc6
{[%clk 0:00:34]} 39... Rfd8 {[%clk 0:00:27.3]} 40. d6 {[%clk 0:00:29.8]} 40...
a5 {[%clk 0:00:25.9]} 41. d7 {[%clk 0:00:23.8]} 41... Rxd7 {[%clk 0:00:20.2]}
42. Nb6 {[%clk 0:00:22.7]} 42... Rad8 {[%clk 0:00:15]} 43. Nxd7 {[%clk
0:00:22.1]} 43... Rxd7 {[%clk 0:00:15.9]} 44. Rxa5 {[%clk 0:00:20.2]} 44... Nd4
{[%clk 0:00:16.8]} 45. Rcc5 {[%clk 0:00:17.6]} 45... Rb7 {[%clk 0:00:14]} 46.
Rd5 {[%clk 0:00:15.6]} 46... Ne6 {[%clk 0:00:13.8]} 47. Kh2 {[%clk 0:00:15.4]}
47... Kh7 {[%clk 0:00:13.4]} 48. Rf5 {[%clk 0:00:15.3]} 48... f6 {[%clk
0:00:13.5]} 49. Rab5 {[%clk 0:00:15.1]} 49... Rf7 {[%clk 0:00:12.1]} 50. Ra5
{[%clk 0:00:13.2]} 50... Nd4 {[%clk 0:00:12.1]} 51. Rf4 {[%clk 0:00:12.4]} 51...
Ne6 {[%clk 0:00:12.3]} 52. Rff5 {[%clk 0:00:12.6]} 52... Rc7 {[%clk 0:00:11.7]}
53. Rf3 {[%clk 0:00:10.5]} 53... Rc2 {[%clk 0:00:11.8]} 54. Ra7 {[%clk
0:00:09.3]} 54... Kg6 {[%clk 0:00:10.6]} 55. Rg3+ {[%clk 0:00:09.5]} 55... Kh7
{[%clk 0:00:10.3]} 56. f4 {[%clk 0:00:09]} 56... Rc5 {[%clk 0:00:07.4]} 57. Re7
{[%clk 0:00:07.9]} 57... Rc6 {[%clk 0:00:05.6]} 58. f5 {[%clk 0:00:07.2]} 58...
Ng5 {[%clk 0:00:05.1]} 59. h4 {[%clk 0:00:07.4]} 59... Rc5 {[%clk 0:00:05.3]}
60. hxg5 {[%clk 0:00:07.2]} 60... hxg5 {[%clk 0:00:04.4]} 61. Rh3+ {[%clk
0:00:06.3]} 61... Kg8 {[%clk 0:00:04.8]} 62. Rd3 {[%clk 0:00:06.7]} 62... Rxf5
{[%clk 0:00:04.5]} 63. Rdd7 {[%clk 0:00:07.2]} 63... Kf8 {[%clk 0:00:02.7]} 64.
Rxg7 {[%clk 0:00:07.9]} 64... Ke8 {[%clk 0:00:03.2]} 65. Rdf7 {[%clk 0:00:08.5]}
65... Rf4 {[%clk 0:00:02.9]} 66. Ra7 {[%clk 0:00:09.2]} 66... Rh4+ {[%clk
0:00:03]} 67. Kg1 {[%clk 0:00:09.3]} 67... Kf8 {[%clk 0:00:03.9]} 68. Rgf7+
{[%clk 0:00:09.4]} 68... Kg8 {[%clk 0:00:04.5]} 69. Rfb7 {[%clk 0:00:10.1]} 1-0

[Event "*** SCC Grand Prix: Titled Tuesday Blitz"]
[Site "Chess.com"]
[Date "2020.09.29"]
[Round "8"]
[White "Kira170"]
[Black "Herracek"]
[Result "0-1"]
[WhiteElo "2775"]
[BlackElo "2643"]
[TimeControl "180+1"]
[EndTime "11:34:25 PDT"]
[Termination "Herracek won on time"]

1. d4 {[%clk 0:03:00]} 1... Nf6 {[%clk 0:02:59.8]} 2. Nc3 {[%clk 0:02:59.9]}
2... d5 {[%clk 0:02:59.4]} 3. Bf4 {[%clk 0:02:58.9]} 3... Bf5 {[%clk 0:02:58.9]}
4. f3 {[%clk 0:02:57.4]} 4... c5 {[%clk 0:02:53.8]} 5. e3 {[%clk 0:02:57.4]}
5... Nc6 {[%clk 0:02:51.5]} 6. g4 {[%clk 0:02:57.1]} 6... Bg6 {[%clk 0:02:47.8]}
7. h4 {[%clk 0:02:56.3]} 7... cxd4 {[%clk 0:02:43.4]} 8. exd4 {[%clk 0:02:56.2]}
8... Qb6 {[%clk 0:02:38.6]} 9. Nb5 {[%clk 0:02:41.1]} 9... e5 {[%clk 0:02:35.4]}
10. dxe5 {[%clk 0:02:36.3]} 10... Bc5 {[%clk 0:02:27.7]} 11. Qd2 {[%clk
0:02:15.9]} 11... Nb4 {[%clk 0:02:12.2]} 12. Rc1 {[%clk 0:01:54.5]} 12... Nxa2
{[%clk 0:01:56.1]} 13. h5 {[%clk 0:01:36.6]} 13... Ne4 {[%clk 0:01:43.1]} 14.
fxe4 {[%clk 0:01:31.4]} 14... Bxe4 {[%clk 0:01:44]} 15. Ra1 {[%clk 0:01:20.6]}
15... Nb4 {[%clk 0:01:29]} 16. Ra4 {[%clk 0:01:10.2]} 16... Nxc2+ {[%clk
0:01:28.4]} 17. Kd1 {[%clk 0:01:10.3]} 17... Bxh1 {[%clk 0:01:22.1]} 18. Qxc2
{[%clk 0:01:05.3]} 18... O-O {[%clk 0:01:12.3]} 19. Nh3 {[%clk 0:00:58.4]} 19...
Bf3+ {[%clk 0:01:03]} 20. Ke1 {[%clk 0:00:46.6]} 20... Rac8 {[%clk 0:01:01.3]}
21. Ng5 {[%clk 0:00:32.7]} 21... Bb4+ {[%clk 0:01:00.4]} 22. Nc3 {[%clk
0:00:32.9]} 22... Be4 {[%clk 0:00:52.1]} 23. Nxe4 {[%clk 0:00:32.8]} 23... dxe4
{[%clk 0:00:52.6]} 24. Qxe4 {[%clk 0:00:32.2]} 24... Bxc3+ {[%clk 0:00:41.5]}
25. bxc3 {[%clk 0:00:32.3]} 25... Rxc3 {[%clk 0:00:41.3]} 26. Bd3 {[%clk
0:00:32.1]} 26... g6 {[%clk 0:00:33.3]} 27. hxg6 {[%clk 0:00:22.9]} 27... hxg6
{[%clk 0:00:32.7]} 28. Bc4 {[%clk 0:00:13.7]} 28... Rc8 {[%clk 0:00:23.1]} 29.
e6 {[%clk 0:00:10.8]} 29... R3xc4 {[%clk 0:00:20.7]} 30. Rxc4 {[%clk 0:00:10.7]}
30... Qg1+ {[%clk 0:00:20.7]} 31. Ke2 {[%clk 0:00:10.4]} 31... Qxg4+ {[%clk
0:00:20.1]} 32. Kd3 {[%clk 0:00:10.7]} 32... Rxc4 {[%clk 0:00:19.8]} 33. Qxc4
{[%clk 0:00:01.5]} 33... Qxe6 {[%clk 0:00:19.7]} 34. Qxe6 {[%clk 0:00:01.1]}
34... fxe6 {[%clk 0:00:20.4]} 35. Bb8 {[%clk 0:00:02]} 35... a6 {[%clk
0:00:20.2]} 36. Bc7 {[%clk 0:00:02.3]} 36... g5 {[%clk 0:00:20.4]} 37. Ke4
{[%clk 0:00:03.2]} 37... Kf7 {[%clk 0:00:21]} 38. Ke5 {[%clk 0:00:03.7]} 38...
b5 {[%clk 0:00:20.6]} 39. Ba5 {[%clk 0:00:04.6]} 39... Ke7 {[%clk 0:00:20.1]}
40. Bb4+ {[%clk 0:00:05]} 40... Kd7 {[%clk 0:00:20.5]} 41. Ba5 {[%clk
0:00:05.9]} 41... g4 {[%clk 0:00:20.3]} 42. Kf4 {[%clk 0:00:06]} 42... Kd6
{[%clk 0:00:19.8]} 43. Kxg4 {[%clk 0:00:06.5]} 43... Kd5 {[%clk 0:00:20.4]} 44.
Kf3 {[%clk 0:00:07.4]} 44... Kd4 {[%clk 0:00:20]} 45. Ke2 {[%clk 0:00:07.6]}
45... Kc4 {[%clk 0:00:20.2]} 46. Kd2 {[%clk 0:00:07.9]} 46... Kb3 {[%clk
0:00:20.1]} 47. Bc7 {[%clk 0:00:08.5]} 47... Kb4 {[%clk 0:00:19.8]} 48. Kc2
{[%clk 0:00:08.6]} 48... a5 {[%clk 0:00:20]} 49. Bd6+ {[%clk 0:00:08.3]} 49...
Kc4 {[%clk 0:00:19.7]} 50. Bc7 {[%clk 0:00:06.8]} 50... a4 {[%clk 0:00:19.7]}
51. Kb2 {[%clk 0:00:07.2]} 51... b4 {[%clk 0:00:20.1]} 52. Bd6 {[%clk
0:00:07.6]} 52... b3 {[%clk 0:00:19.1]} 53. Bb8 {[%clk 0:00:06.9]} 53... Kd5
{[%clk 0:00:18]} 54. Ka3 {[%clk 0:00:07]} 54... e5 {[%clk 0:00:18.4]} 55. Ba7
{[%clk 0:00:07.1]} 55... e4 {[%clk 0:00:18.6]} 56. Be3 {[%clk 0:00:07]} 56...
Kc4 {[%clk 0:00:19]} 57. Bc1 {[%clk 0:00:07.2]} 57... Kc3 {[%clk 0:00:19.2]} 58.
Bb2+ {[%clk 0:00:05.1]} 58... Kc2 {[%clk 0:00:19.6]} 59. Bd4 {[%clk 0:00:05.2]}
59... e3 {[%clk 0:00:19.8]} 60. Bxe3 {[%clk 0:00:05.3]} 60... b2 {[%clk
0:00:20.2]} 61. Kxa4 {[%clk 0:00:01.6]} 61... b1=Q {[%clk 0:00:20.9]} 62. Bc5
{[%clk 0:00:02.4]} 62... Qb3+ {[%clk 0:00:19.7]} 63. Ka5 {[%clk 0:00:02.8]}
63... Kc3 {[%clk 0:00:20.2]} 64. Ka6 {[%clk 0:00:02.5]} 64... Kc4 {[%clk
0:00:21.1]} 65. Bb6 {[%clk 0:00:02.5]} 65... Qb5+ {[%clk 0:00:21.2]} 66. Kb7
{[%clk 0:00:03.4]} 66... Kd5 {[%clk 0:00:21.7]} 67. Kc7 {[%clk 0:00:04.3]} 67...
Qc6+ {[%clk 0:00:21.8]} 0-1

[Event "*** SCC Grand Prix: Titled Tuesday Blitz"]
[Site "Chess.com"]
[Date "2020.09.29"]
[Round "8"]
[White "RobertoJBM"]
[Black "valeriocarnicelli"]
[Result "1-0"]
[WhiteElo "2728"]
[BlackElo "2542"]
[TimeControl "180+1"]
[EndTime "11:34:26 PDT"]
[Termination "RobertoJBM won on time"]

1. d4 {[%clk 0:03:00.9]} 1... d5 {[%clk 0:03:00]} 2. c4 {[%clk 0:02:59.9]} 2...
c6 {[%clk 0:03:00.6]} 3. Nf3 {[%clk 0:02:59.1]} 3... Nf6 {[%clk 0:03:00.7]} 4.
Nc3 {[%clk 0:02:58.3]} 4... dxc4 {[%clk 0:03:01.1]} 5. a4 {[%clk 0:02:56.5]}
5... Bf5 {[%clk 0:03:00.4]} 6. Ne5 {[%clk 0:02:56.2]} 6... Nbd7 {[%clk
0:03:00.6]} 7. Nxc4 {[%clk 0:02:55.9]} 7... Qc7 {[%clk 0:03:01]} 8. g3 {[%clk
0:02:54.1]} 8... e5 {[%clk 0:03:01.4]} 9. dxe5 {[%clk 0:02:54.1]} 9... Nxe5
{[%clk 0:03:02.3]} 10. Bf4 {[%clk 0:02:54.3]} 10... Nfd7 {[%clk 0:03:02.8]} 11.
Bg2 {[%clk 0:02:52.2]} 11... f6 {[%clk 0:03:03.1]} 12. O-O {[%clk 0:02:50.2]}
12... Be6 {[%clk 0:03:03.6]} 13. Nxe5 {[%clk 0:02:41.6]} 13... Nxe5 {[%clk
0:03:04.5]} 14. Qc2 {[%clk 0:02:37.8]} 14... a6 {[%clk 0:02:59]} 15. Ne4 {[%clk
0:02:30.8]} 15... Be7 {[%clk 0:02:52]} 16. Nc5 {[%clk 0:02:26.3]} 16... Bd5
{[%clk 0:02:35.2]} 17. Rfd1 {[%clk 0:02:08]} 17... Bxg2 {[%clk 0:02:30.8]} 18.
Kxg2 {[%clk 0:02:08.9]} 18... Bxc5 {[%clk 0:02:08.5]} 19. Qxc5 {[%clk
0:02:06.6]} 19... Qe7 {[%clk 0:02:07.2]} 20. Qxe7+ {[%clk 0:01:20.6]} 20... Kxe7
{[%clk 0:02:08.1]} 21. Bxe5 {[%clk 0:01:21.2]} 21... fxe5 {[%clk 0:02:08.1]} 22.
Kf3 {[%clk 0:01:22.1]} 22... Rad8 {[%clk 0:02:04]} 23. Ke4 {[%clk 0:01:21.4]}
23... Ke6 {[%clk 0:02:04.4]} 24. f4 {[%clk 0:01:11.7]} 24... Rd5 {[%clk
0:01:57.8]} 25. Rac1 {[%clk 0:00:51]} 25... Rhd8 {[%clk 0:01:46.6]} 26. Rxd5
{[%clk 0:00:50.6]} 26... Rxd5 {[%clk 0:01:42.4]} 27. e3 {[%clk 0:00:37]} 27...
exf4 {[%clk 0:01:29.9]} 28. gxf4 {[%clk 0:00:36]} 28... Rd2 {[%clk 0:01:29.9]}
29. b4 {[%clk 0:00:36]} 29... Rxh2 {[%clk 0:01:27.4]} 30. b5 {[%clk 0:00:35.6]}
30... axb5 {[%clk 0:01:05.5]} 31. axb5 {[%clk 0:00:36.5]} 31... Kd6 {[%clk
0:01:02.2]} 32. Rd1+ {[%clk 0:00:28]} 32... Ke6 {[%clk 0:00:57.8]} 33. bxc6
{[%clk 0:00:16]} 33... bxc6 {[%clk 0:00:57.7]} 34. Rc1 {[%clk 0:00:13.5]} 34...
Kd6 {[%clk 0:00:57.9]} 35. Rd1+ {[%clk 0:00:11.8]} 35... Ke7 {[%clk 0:00:57.9]}
36. Rc1 {[%clk 0:00:11.3]} 36... Rh6 {[%clk 0:00:58]} 37. Kf5 {[%clk 0:00:11.2]}
37... Rf6+ {[%clk 0:00:57.2]} 38. Kg4 {[%clk 0:00:11.6]} 38... Re6 {[%clk
0:00:57]} 39. Kf3 {[%clk 0:00:09.9]} 39... g6 {[%clk 0:00:57.4]} 40. e4 {[%clk
0:00:10.3]} 40... Kd7 {[%clk 0:00:46.1]} 41. e5 {[%clk 0:00:10.3]} 41... Re8
{[%clk 0:00:35.9]} 42. Ke4 {[%clk 0:00:10.2]} 42... Ra8 {[%clk 0:00:34.7]} 43.
Rd1+ {[%clk 0:00:09.3]} 43... Ke7 {[%clk 0:00:34.8]} 44. Rd4 {[%clk 0:00:06.2]}
44... c5 {[%clk 0:00:29.8]} 45. Rd6 {[%clk 0:00:05.3]} 45... Ra4+ {[%clk
0:00:23.1]} 46. Kf3 {[%clk 0:00:05.4]} 46... c4 {[%clk 0:00:15.3]} 47. Rc6
{[%clk 0:00:04.4]} 47... Kd7 {[%clk 0:00:15.1]} 48. Rc5 {[%clk 0:00:04.3]} 48...
Ke6 {[%clk 0:00:15]} 49. Kg4 {[%clk 0:00:04.8]} 49... h6 {[%clk 0:00:11.2]} 50.
Rc6+ {[%clk 0:00:04.9]} 50... Kf7 {[%clk 0:00:10.9]} 51. Rc7+ {[%clk 0:00:03.6]}
51... Ke6 {[%clk 0:00:10.4]} 52. Rc6+ {[%clk 0:00:04.2]} 52... Kd5 {[%clk
0:00:08]} 53. Rd6+ {[%clk 0:00:04.2]} 53... Kc5 {[%clk 0:00:05.2]} 54. Rxg6
{[%clk 0:00:05.1]} 54... c3 {[%clk 0:00:05.7]} 55. Rxh6 {[%clk 0:00:05.6]} 55...
c2 {[%clk 0:00:05.3]} 56. Rh1 {[%clk 0:00:06.2]} 56... Rc4 {[%clk 0:00:03.2]}
57. Rc1 {[%clk 0:00:05.9]} 57... Kd5 {[%clk 0:00:03.6]} 58. Kf5 {[%clk
0:00:06.2]} 58... Rc3 {[%clk 0:00:03.5]} 59. e6 {[%clk 0:00:06.2]} 59... Kd6
{[%clk 0:00:03.3]} 60. Kf6 {[%clk 0:00:06]} 60... Rc8 {[%clk 0:00:02.9]} 61. f5
{[%clk 0:00:06]} 61... Rf8+ {[%clk 0:00:02.9]} 62. Kg6 {[%clk 0:00:06.2]} 62...
Rc8 {[%clk 0:00:02.2]} 63. Kf7 {[%clk 0:00:05.5]} 63... Rc7+ {[%clk 0:00:02.4]}
64. Kf6 {[%clk 0:00:04.6]} 64... Rc8 {[%clk 0:00:02]} 65. e7 {[%clk 0:00:04.3]}
65... Kd7 {[%clk 0:00:02.5]} 66. Kf7 {[%clk 0:00:03.7]} 66... Re8 {[%clk
0:00:02.9]} 67. f6 {[%clk 0:00:04]} 67... Rc8 {[%clk 0:00:02.9]} 68. Rxc2 {[%clk
0:00:04.9]} 1-0

[Event "*** SCC Grand Prix: Titled Tuesday Blitz"]
[Site "Chess.com"]
[Date "2020.09.29"]
[Round "8"]
[White "boasovietica"]
[Black "josorio78"]
[Result "1/2-1/2"]
[WhiteElo "2425"]
[BlackElo "2330"]
[TimeControl "180+1"]
[EndTime "11:34:38 PDT"]
[Termination "Game drawn by stalemate"]

1. e4 {[%clk 0:03:00.9]} 1... c5 {[%clk 0:02:59.8]} 2. Nf3 {[%clk 0:03:00.4]}
2... d6 {[%clk 0:02:59.9]} 3. d4 {[%clk 0:03:00.3]} 3... cxd4 {[%clk 0:03:00]}
4. Nxd4 {[%clk 0:03:01.2]} 4... Nf6 {[%clk 0:03:00.4]} 5. Nc3 {[%clk 0:03:00.5]}
5... a6 {[%clk 0:03:00.9]} 6. Be3 {[%clk 0:02:59.7]} 6... e5 {[%clk 0:03:00.5]}
7. Nf3 {[%clk 0:02:59.7]} 7... Be7 {[%clk 0:02:58.3]} 8. Nd2 {[%clk 0:02:59.3]}
8... h6 {[%clk 0:02:58.1]} 9. Nc4 {[%clk 0:02:59.4]} 9... Nc6 {[%clk 0:02:29.9]}
10. Nb6 {[%clk 0:02:54.2]} 10... Rb8 {[%clk 0:02:29.6]} 11. Nbd5 {[%clk
0:02:43.7]} 11... Be6 {[%clk 0:02:26]} 12. Bb6 {[%clk 0:02:40.7]} 12... Qd7
{[%clk 0:02:23.7]} 13. Nc7+ {[%clk 0:02:37]} 13... Kf8 {[%clk 0:02:23.8]} 14.
Nxe6+ {[%clk 0:02:36.5]} 14... fxe6 {[%clk 0:02:23.8]} 15. Qf3 {[%clk
0:02:32.8]} 15... g6 {[%clk 0:02:23]} 16. Bc4 {[%clk 0:02:30.7]} 16... Kg7
{[%clk 0:02:22.5]} 17. O-O {[%clk 0:02:24.8]} 17... Rbe8 {[%clk 0:02:21.5]} 18.
Rad1 {[%clk 0:02:23.5]} 18... Rhf8 {[%clk 0:02:16.7]} 19. Qh3 {[%clk 0:02:23.7]}
19... Bd8 {[%clk 0:02:10.6]} 20. Bc5 {[%clk 0:02:10.1]} 20... Bc7 {[%clk
0:02:09.1]} 21. Be3 {[%clk 0:02:09.1]} 21... g5 {[%clk 0:02:08.8]} 22. Rd2
{[%clk 0:01:45]} 22... b5 {[%clk 0:02:08.5]} 23. Bd3 {[%clk 0:01:34.6]} 23...
Nd4 {[%clk 0:02:03.1]} 24. Ne2 {[%clk 0:01:25.9]} 24... Nxe2+ {[%clk 0:01:56.9]}
25. Rxe2 {[%clk 0:01:24.3]} 25... Qf7 {[%clk 0:01:53.4]} 26. g3 {[%clk
0:01:15.6]} 26... Qh5 {[%clk 0:01:50.3]} 27. Qxh5 {[%clk 0:01:14.2]} 27... Nxh5
{[%clk 0:01:50.1]} 28. a4 {[%clk 0:01:12.1]} 28... bxa4 {[%clk 0:01:44.4]} 29.
Bxa6 {[%clk 0:01:11.9]} 29... Rb8 {[%clk 0:01:45]} 30. c3 {[%clk 0:01:10.4]}
30... Nf6 {[%clk 0:01:26.3]} 31. Bc4 {[%clk 0:01:10.2]} 31... d5 {[%clk
0:01:23.4]} 32. exd5 {[%clk 0:01:05.6]} 32... exd5 {[%clk 0:01:24.3]} 33. Ba2
{[%clk 0:01:05.3]} 33... Rfd8 {[%clk 0:01:20.1]} 34. Rd1 {[%clk 0:01:03.4]}
34... Kg6 {[%clk 0:01:16.1]} 35. Bc5 {[%clk 0:01:02.9]} 35... Kf5 {[%clk
0:01:14]} 36. Be7 {[%clk 0:01:02.3]} 36... Rd7 {[%clk 0:01:08.1]} 37. Bxf6
{[%clk 0:01:02]} 37... Kxf6 {[%clk 0:01:09]} 38. Bxd5 {[%clk 0:00:52.5]} 38...
Rb5 {[%clk 0:01:04.7]} 39. c4 {[%clk 0:00:50.3]} 39... Rb4 {[%clk 0:00:59]} 40.
Rd3 {[%clk 0:00:49.5]} 40... Bb6 {[%clk 0:00:53.5]} 41. Rf3+ {[%clk 0:00:49.3]}
41... Kg6 {[%clk 0:00:52.4]} 42. Rxe5 {[%clk 0:00:48.1]} 42... Rxb2 {[%clk
0:00:52.4]} 43. Re6+ {[%clk 0:00:47.9]} 43... Kg7 {[%clk 0:00:51]} 44. Rff6
{[%clk 0:00:46]} 44... Bd4 {[%clk 0:00:43.9]} 45. Rxh6 {[%clk 0:00:45.5]} 45...
Rxf2 {[%clk 0:00:38.6]} 46. Reg6+ {[%clk 0:00:42.5]} 46... Kf8 {[%clk
0:00:38.7]} 47. Rh8+ {[%clk 0:00:38.7]} 47... Ke7 {[%clk 0:00:38.7]} 48. Re6+
{[%clk 0:00:38.8]} 48... Kf7 {[%clk 0:00:37.2]} 49. Re4+ {[%clk 0:00:36.3]}
49... Rxd5 {[%clk 0:00:35.9]} 50. cxd5 {[%clk 0:00:35.9]} 50... Rf4+ {[%clk
0:00:29.9]} 51. Rxd4 {[%clk 0:00:35.1]} 51... Rxd4 {[%clk 0:00:30.8]} 52. Ra8
{[%clk 0:00:27.6]} 52... Kf6 {[%clk 0:00:30.1]} 53. Kg2 {[%clk 0:00:25.1]} 53...
Ke5 {[%clk 0:00:30.1]} 54. Ra5 {[%clk 0:00:25]} 54... g4 {[%clk 0:00:27.9]} 55.
h4 {[%clk 0:00:10.2]} 55... Rd2+ {[%clk 0:00:26]} 56. Kf1 {[%clk 0:00:09.7]}
56... Ra2 {[%clk 0:00:21.7]} 57. h5 {[%clk 0:00:08.9]} 57... Rh2 {[%clk
0:00:21.3]} 58. Rxa4 {[%clk 0:00:07.3]} 58... Rxh5 {[%clk 0:00:21.2]} 59. Rxg4
{[%clk 0:00:07.6]} 59... Kxd5 {[%clk 0:00:21.6]} 60. Rf4 {[%clk 0:00:06.3]}
60... Ke5 {[%clk 0:00:22]} 61. Kf2 {[%clk 0:00:06.6]} 61... Rf5 {[%clk
0:00:22.6]} 62. Kf3 {[%clk 0:00:03.4]} 62... Rxf4+ {[%clk 0:00:22.8]} 63. gxf4+
{[%clk 0:00:04]} 63... Kf5 {[%clk 0:00:23.2]} 64. Ke3 {[%clk 0:00:04.2]} 64...
Kf6 {[%clk 0:00:23.2]} 65. Ke4 {[%clk 0:00:04.3]} 65... Ke6 {[%clk 0:00:23.7]}
66. Kf3 {[%clk 0:00:04.9]} 66... Kf5 {[%clk 0:00:23.8]} 67. Kg3 {[%clk
0:00:05.5]} 67... Kf6 {[%clk 0:00:23.9]} 68. Kg4 {[%clk 0:00:06]} 68... Kg6
{[%clk 0:00:24.4]} 69. f5+ {[%clk 0:00:06.9]} 69... Kf6 {[%clk 0:00:24.7]} 70.
Kf4 {[%clk 0:00:07.8]} 70... Kf7 {[%clk 0:00:25.2]} 71. Kg5 {[%clk 0:00:08.7]}
71... Kg7 {[%clk 0:00:25.6]} 72. f6+ {[%clk 0:00:09.1]} 72... Kf7 {[%clk
0:00:26]} 73. Kf5 {[%clk 0:00:10]} 73... Kf8 {[%clk 0:00:26.2]} 74. Ke4 {[%clk
0:00:10.6]} 74... Kf7 {[%clk 0:00:26.4]} 75. Ke5 {[%clk 0:00:10.9]} 75... Kf8
{[%clk 0:00:26.1]} 76. Kf4 {[%clk 0:00:11.4]} 76... Kf7 {[%clk 0:00:26.4]} 77.
Kg5 {[%clk 0:00:12]} 77... Kf8 {[%clk 0:00:26.4]} 78. Kg6 {[%clk 0:00:12.6]}
78... Kg8 {[%clk 0:00:26.6]} 79. Kf5 {[%clk 0:00:12.9]} 79... Kf7 {[%clk
0:00:26.8]} 80. Ke5 {[%clk 0:00:13.4]} 80... Kf8 {[%clk 0:00:26.3]} 81. Ke6
{[%clk 0:00:13.9]} 81... Ke8 {[%clk 0:00:26.6]} 82. f7+ {[%clk 0:00:08.9]} 82...
Kf8 {[%clk 0:00:26.6]} 83. Kf6 {[%clk 0:00:09.3]} 1/2-1/2